fUSD/lending_fUSD_20240902
["ID","MTS","AMOUNT","RATE_DAILY","PERIOD"]
[336994794,1725297039058,-500.0,0.00019178,2]
[336994795,1725297039078,-500.0,0.00019178,2]
[336994796,1725297039088,-500.0,0.00019178,2]
[336994797,1725297039097,-500.0,0.00019178,2]
[336994798,1725297039106,-500.0,0.00019178,2]
[336994799,1725297039115,-500.0,0.00019178,2]
[336994800,1725297039125,-500.0,0.00019178,2]
[336994801,1725297039135,-500.0,0.00019178,2]
[336994802,1725297039144,-500.0,0.00019178,2]
[336994803,1725297039153,-500.0,0.00019178,2]
[336994804,1725297039162,-500.0,0.00019178,2]
[336994805,1725297039172,-500.0,0.00019178,2]
[336994806,1725297039181,-500.0,0.00019178,2]
[336994807,1725297039191,-500.0,0.00019178,2]
[336994808,1725297039200,-500.0,0.00019178,2]
[336994809,1725297039209,-500.0,0.00019178,2]
[336994810,1725297039219,-500.0,0.00019178,2]
[336994811,1725297039228,-500.0,0.00019178,2]
[336994812,1725297039239,-500.0,0.00019178,2]
[336994813,1725297039248,-500.0,0.00019178,2]
[336994814,1725297039258,-500.0,0.00019178,2]
[336994815,1725297039267,-500.0,0.00019178,2]
[336994816,1725297039277,-200.0,0.00019178,2]
[336994817,1725297039287,-500.0,0.00019178,2]
[336994818,1725297039297,-200.0,0.00019178,2]
[336994819,1725297039307,-461.84,0.00019178,2]
[336994820,1725297039316,-500.0,0.00019178,2]
[336994821,1725297039327,-500.0,0.00019178,2]
[336994822,1725297039336,-500.0,0.00019178,2]
[336994823,1725297039346,-500.0,0.00019178,2]
[336994824,1725297039356,-500.0,0.00019178,2]
[336994825,1725297039365,-500.0,0.00019178,2]
[336994826,1725297039374,-500.0,0.00019178,2]
[336994827,1725297039383,-500.0,0.00019178,2]
[336994828,1725297039393,-500.0,0.00019178,2]
[336994829,1725297039403,-544.08169779,0.00019178,2]
[336994830,1725297039413,-500.0,0.00019178,2]
[336994831,1725297039423,-500.0,0.00019178,2]
[336994832,1725297039433,-500.0,0.00019178,2]
[336994833,1725297039442,-500.0,0.00019178,2]
[336994834,1725297039451,-500.0,0.00019178,2]
[336994835,1725297039461,-500.0,0.00019178,2]
[336994836,1725297039471,-500.0,0.00019178,2]
[336994837,1725297039481,-500.0,0.00019178,2]
[336994838,1725297039491,-500.0,0.00019178,2]
[336994839,1725297039500,-500.0,0.00019178,2]
[336994840,1725297039510,-500.0,0.00019178,2]
[336994841,1725297039519,-500.0,0.00019178,2]
[336994842,1725297039529,-500.0,0.00019178,2]
[336994843,1725297039538,-500.0,0.00019178,2]
[336994844,1725297039547,-500.0,0.00019178,2]
[336994845,1725297039557,-500.0,0.00019178,2]
[336994846,1725297039571,-500.0,0.00019178,2]
[336994847,1725297039581,-500.0,0.00019178,2]
[336994848,1725297039590,-201.06625136,0.00019178,2]
[336994849,1725297039600,-500.0,0.00019178,2]
[336994850,1725297039609,-500.0,0.00019178,2]
[336994851,1725297039618,-500.0,0.00019178,2]
[336994852,1725297039628,-500.0,0.00019178,2]
[336994853,1725297039637,-500.0,0.00019178,2]
[336994854,1725297039647,-525.24,0.00019178,2]
[336994855,1725297039657,-472.79083746,0.00019178,2]
[336994856,1725297039666,-500.0,0.00019178,2]
[336994857,1725297039676,-500.0,0.00019178,2]
[336994858,1725297039685,-500.0,0.00019178,2]
[336994859,1725297039695,-500.0,0.00019178,2]
[336994860,1725297039704,-500.0,0.00019178,2]
[336994861,1725297039714,-500.0,0.00019178,2]
[336994862,1725297039724,-500.0,0.00019178,2]
[336994863,1725297039733,-500.0,0.00019178,2]
[336994864,1725297039743,-500.0,0.00019178,2]
[336994865,1725297039752,-343.89,0.00019178,2]
[336994866,1725297039762,-500.0,0.00019178,2]
[336994867,1725297039771,-521.36,0.00019178,2]
[336994868,1725297039781,-508.23,0.00019178,2]
[336994870,1725297039790,-500.0,0.00019178,2]
[336994871,1725297039799,-500.0,0.00019178,2]
[336994872,1725297039808,-500.0,0.00019178,2]
[336994873,1725297039818,-500.0,0.00019178,2]
[336994874,1725297039828,-500.0,0.00019178,2]
[336994875,1725297039837,-500.0,0.00019178,2]
[336994876,1725297039846,-500.0,0.00019178,2]
[336994877,1725297039856,-240.586147,0.00019178,2]
[336994878,1725297039866,-500.0,0.00019178,2]
[336994879,1725297039875,-500.0,0.00019178,2]
[336994881,1725297039885,-623.02,0.00019178,2]
[336994883,1725297039894,-500.0,0.00019178,2]
[336994884,1725297039904,-500.0,0.00019178,2]
[336994885,1725297039913,-500.0,0.00019178,2]
[336994886,1725297039922,-500.0,0.00019178,2]
[336994887,1725297039932,-234.94,0.00019178,2]
[336994888,1725297039944,-500.0,0.00019178,2]
[336994889,1725297039959,-500.0,0.00019178,2]
[336994890,1725297039968,-500.0,0.00019178,2]
[336994891,1725297039980,-500.0,0.00019178,2]
[336994892,1725297039993,-500.0,0.00019178,2]
[336994893,1725297040002,-500.0,0.00019178,2]
[336994894,1725297040013,-500.0,0.00019178,2]
[336994895,1725297040024,-500.0,0.00019178,2]
[336994896,1725297040036,-242.80769384,0.00019178,2]
[336994897,1725297040047,-500.0,0.00019178,2]
[336994898,1725297040058,-500.0,0.00019178,2]
[336994899,1725297040067,-345.67,0.00019178,2]
[336994900,1725297040076,-500.0,0.00019178,2]
[336994901,1725297040085,-500.0,0.00019178,2]
[336994902,1725297040095,-500.0,0.00019178,2]
[336994903,1725297040104,-500.0,0.00019178,2]
[336994904,1725297040113,-458.04,0.00019178,2]
[336994905,1725297040123,-500.0,0.00019178,2]
[336994906,1725297040132,-500.0,0.00019178,2]
[336994907,1725297040142,-455.93,0.00019178,2]
[336994908,1725297040151,-500.0,0.00019178,2]
[336994909,1725297040160,-500.0,0.00019178,2]
[336994910,1725297040170,-500.0,0.00019178,2]
[336994911,1725297040179,-500.0,0.00019178,2]
[336994912,1725297040188,-500.0,0.00019178,2]
[336994913,1725297040198,-500.0,0.00019178,2]
[336994914,1725297040207,-500.0,0.00019178,2]
[336994915,1725297040217,-500.0,0.00019178,2]
[336994916,1725297040226,-588.6,0.00019178,2]
[336994917,1725297040236,-500.0,0.00019178,2]
[336994918,1725297040245,-389.98,0.00019178,2]
[336994919,1725297040255,-500.0,0.00019178,2]
[336994920,1725297040264,-500.0,0.00019178,2]
[336994921,1725297040276,-500.0,0.00019178,2]
[336994922,1725297040285,-500.0,0.00019178,2]
[336994923,1725297040294,-500.0,0.00019178,2]
[336994924,1725297040304,-500.0,0.00019178,2]
[336994925,1725297040314,-193.92,0.00019178,2]
[336994926,1725297040323,-500.0,0.00019178,2]
[336994927,1725297040333,-500.0,0.00019178,2]
[336994928,1725297040342,-500.0,0.00019178,2]
[336994929,1725297040352,-500.0,0.00019178,2]
[336994930,1725297040361,-500.0,0.00019178,2]
[336994931,1725297040370,-609.45,0.00019178,2]
[336994932,1725297040380,-500.0,0.00019178,2]
[336994934,1725297040389,-500.0,0.00019178,2]
[336994935,1725297040399,-500.0,0.00019178,2]
[336994936,1725297040409,-500.0,0.00019178,2]
[336994937,1725297040418,-500.0,0.00019178,2]
[336994938,1725297040429,-500.0,0.00019178,2]
[336994939,1725297040438,-500.0,0.00019178,2]
[336994940,1725297040447,-541.43220652,0.00019178,2]
[336994941,1725297040457,-599.94,0.00019178,2]
[336994942,1725297040467,-500.0,0.00019178,2]
[336994943,1725297040476,-500.0,0.00019178,2]
[336994944,1725297040486,-500.0,0.00019178,2]
[336994945,1725297040495,-500.0,0.00019178,2]
[336994946,1725297040504,-500.0,0.00019178,2]
[336994947,1725297040514,-622.06,0.00019178,2]
[336994948,1725297040523,-500.0,0.00019178,2]
[336994949,1725297040533,-500.0,0.00019178,2]
[336994950,1725297040542,-522.11,0.00019178,2]
[336994951,1725297040551,-500.0,0.00019178,2]
[336994952,1725297040562,-206.39,0.00019178,2]
[336994953,1725297040571,-500.0,0.00019178,2]
[336994954,1725297040581,-500.0,0.00019178,2]
[336994955,1725297040590,-500.0,0.00019178,2]
[336994956,1725297040600,-500.0,0.00019178,2]
[336994957,1725297040610,-500.0,0.00019178,2]
[336994958,1725297040620,-500.0,0.00019178,2]
[336994959,1725297040630,-500.0,0.00019178,2]
[336994960,1725297040639,-500.0,0.00019178,2]
[336994961,1725297040649,-431.52,0.00019178,2]
[336994962,1725297040658,-500.0,0.00019178,2]
[336994963,1725297040668,-500.0,0.00019178,2]
[336994964,1725297040677,-500.0,0.00019178,2]
[336994965,1725297040687,-160.21,0.00019178,2]
[336994966,1725297040696,-500.0,0.00019178,2]
[336994967,1725297040705,-500.0,0.00019178,2]
[336994968,1725297040715,-330.74,0.00019178,2]
[336994969,1725297040724,-500.0,0.00019178,2]
[336994970,1725297040733,-500.0,0.00019178,2]
[336994971,1725297040743,-500.0,0.00019178,2]
[336994972,1725297040752,-500.0,0.00019178,2]
[336994973,1725297040762,-500.0,0.00019178,2]
[336994974,1725297040771,-410.13,0.00019178,2]
[336994975,1725297040781,-500.0,0.00019178,2]
[336994976,1725297040790,-358.78,0.00019178,2]
[336994977,1725297040800,-538.3,0.00019178,2]
[336994978,1725297040809,-643.61,0.00019178,2]
[336994979,1725297040819,-500.0,0.00019178,2]
[336994980,1725297040828,-500.0,0.00019178,2]
[336994981,1725297040837,-500.0,0.00019178,2]
[336994982,1725297040847,-171.53,0.00019178,2]
[336994983,1725297040856,-535.01,0.00019178,2]
[336994984,1725297040866,-500.0,0.00019178,2]
[336994985,1725297040875,-525.71,0.00019178,2]
[336994986,1725297040884,-500.0,0.00019178,2]
[336994987,1725297040894,-500.0,0.00019178,2]
[336994988,1725297040903,-500.0,0.00019178,2]
[336994989,1725297040912,-500.0,0.00019178,2]
[336994990,1725297040921,-500.0,0.00019178,2]
[336994991,1725297040931,-500.0,0.00019178,2]
[336994992,1725297040940,-500.0,0.00019178,2]
[336994993,1725297040954,-500.0,0.00019178,2]
[336994994,1725297040964,-500.0,0.00019178,2]
[336994995,1725297040973,-500.0,0.00019178,2]
[336994996,1725297040983,-371.04,0.00019178,2]
[336994997,1725297040993,-500.0,0.00019178,2]
[336994998,1725297041003,-500.0,0.00019178,2]
[336994999,1725297041012,-500.0,0.00019178,2]
[336995000,1725297041022,-500.0,0.00019178,2]
[336995001,1725297041032,-500.0,0.00019178,2]
[336995002,1725297041251,-500.0,0.00019178,2]
[336995003,1725297041261,-500.0,0.00019178,2]
[336995004,1725297041271,-500.0,0.00019178,2]
[336995005,1725297041281,-500.0,0.00019178,2]
[336995006,1725297041291,-522.92457425,0.00019178,2]
[336995007,1725297041300,-500.0,0.00019178,2]
[336995008,1725297041309,-500.0,0.00019178,2]
[336995009,1725297041319,-500.0,0.00019178,2]
[336995010,1725297041329,-500.0,0.00019178,2]
[336995011,1725297041338,-270.70721596,0.00019178,2]
[336995012,1725297041348,-168.75454858,0.00019178,2]
[336995013,1725297041357,-500.0,0.00019178,2]
[336995014,1725297041368,-500.0,0.00019178,2]
[336995015,1725297041377,-500.0,0.00019178,2]
[336995016,1725297041386,-827.78521408,0.00019191,2]
[336995017,1725297041396,-152.0,0.00019285,3]
[336995018,1725297041406,-2013.27,0.000193,2]
[336995019,1725297041416,-827.78521408,0.00019309,2]
[336995020,1725297041426,-827.78521408,0.00019427,2]
[336995021,1725297041435,-161.220317,0.000195,14]
[336995022,1725297041445,-7500.0,0.00019535,2]
[336995023,1725297041455,-827.78521408,0.00019546,2]
[336995024,1725297041465,-500.0,0.00019635,2]
[336995025,1725297041474,-500.0,0.00019635,2]
[336995026,1725297041484,-500.0,0.00019635,2]
[336995027,1725297041494,-500.0,0.00019635,2]
[336995028,1725297041503,-500.0,0.00019635,2]
[336995029,1725297041513,-500.0,0.00019635,2]
[336995030,1725297041523,-500.0,0.00019635,2]
[336995031,1725297041533,-500.0,0.00019635,2]
[336995032,1725297041543,-500.0,0.00019635,2]
[336995033,1725297041552,-492.01,0.00019635,2]
[336995034,1725297041562,-500.0,0.00019635,2]
[336995035,1725297041571,-500.0,0.00019635,2]
[336995036,1725297041581,-500.0,0.00019635,2]
[336995037,1725297041591,-500.0,0.00019635,2]
[336995038,1725297041600,-500.0,0.00019635,2]
[336995039,1725297041609,-500.0,0.00019635,2]
[336995040,1725297041619,-500.0,0.00019635,2]
[336995041,1725297041629,-500.0,0.00019635,2]
[336995042,1725297041638,-572.52963581,0.00019635,2]
[336995043,1725297041647,-500.0,0.00019635,2]
[336995044,1725297041657,-301.65904008,0.00019635,2]
[336995045,1725297041666,-500.0,0.00019635,2]
[336995046,1725297041676,-500.0,0.00019635,2]
[336995047,1725297041685,-500.0,0.00019635,2]
[336995048,1725297041694,-500.0,0.00019635,2]
[336995049,1725297041703,-500.0,0.00019635,2]
[336995050,1725297041713,-500.0,0.00019635,2]
[336995051,1725297041722,-500.0,0.00019635,2]
[336995052,1725297041732,-500.0,0.00019635,2]
[336995053,1725297041742,-500.0,0.00019635,2]
[336995054,1725297041752,-500.0,0.00019635,2]
[336995055,1725297041761,-500.0,0.00019635,2]
[336995056,1725297041771,-500.0,0.00019635,2]
[336995057,1725297041780,-500.0,0.00019635,2]
[336995058,1725297041790,-500.0,0.00019635,2]
[336995059,1725297041799,-500.0,0.00019635,2]
[336995060,1725297041808,-500.0,0.00019635,2]
[336995061,1725297041819,-500.0,0.00019635,2]
[336995062,1725297041829,-500.0,0.00019635,2]
[336995063,1725297041839,-200.0,0.00019635,2]
[336995064,1725297041848,-500.0,0.00019635,2]
[336995065,1725297041858,-500.0,0.00019635,2]
[336995066,1725297041868,-500.0,0.00019635,2]
[336995067,1725297041879,-500.0,0.00019635,2]
[336995068,1725297041888,-500.0,0.00019635,2]
[336995069,1725297041898,-500.0,0.00019635,2]
[336995070,1725297041909,-281.10957933,0.00019635,2]
[336995071,1725297041920,-500.0,0.00019635,2]
[336995072,1725297041929,-500.0,0.00019635,2]
[336995073,1725297041939,-500.0,0.00019635,2]
[336995074,1725297041950,-500.0,0.00019635,2]
[336995075,1725297041963,-500.0,0.00019635,2]
[336995076,1725297041972,-500.0,0.00019635,2]
[336995077,1725297041981,-500.0,0.00019635,2]
[336995078,1725297041991,-500.0,0.00019635,2]
[336995079,1725297042002,-500.0,0.00019635,2]
[336995080,1725297042012,-500.0,0.00019635,2]
[336995081,1725297042022,-205.08,0.00019635,2]
[336995082,1725297042032,-500.0,0.00019635,2]
[336995083,1725297042042,-236.45,0.00019635,2]
[336995084,1725297042051,-500.0,0.00019635,2]
[336995085,1725297042061,-500.0,0.00019635,2]
[336995086,1725297042070,-584.24,0.00019635,2]
[336995087,1725297042080,-500.0,0.00019635,2]
[336995088,1725297042089,-433.15,0.00019635,2]
[336995089,1725297042098,-273.65,0.00019635,2]
[336995090,1725297042107,-500.0,0.00019635,2]
[336995091,1725297042117,-403.39,0.00019635,2]
[336995092,1725297042126,-361.2,0.00019635,2]
[336995093,1725297042135,-360.23,0.00019635,2]
[336995094,1725297042145,-500.0,0.00019635,2]
[336995095,1725297042154,-827.78521408,0.00019664,2]
[336995096,1725297042163,-217.09,0.00019699,2]
[336995097,1725297042172,-500.0,0.00019699,2]
[336995098,1725297042182,-585.62,0.00019699,2]
[336995099,1725297042191,-1703.0,0.000197,2]
[336995100,1725297042199,-800.0,0.00019748,2]
[336995101,1725297042208,-600.0,0.00019748,2]
[336995102,1725297042217,-500.0,0.00019748,2]
[336995103,1725297042226,-500.0,0.00019748,2]
[336995104,1725297042236,-150.0,0.00019748,2]
[336995105,1725297042245,-166.39250321,0.00019779,2]
[336995106,1725297042254,-827.78521408,0.00019782,2]
[336995107,1725297042263,-1500.0,0.00019852,2]
[336995108,1725297042274,-500.0,0.00019876,2]
[336995109,1725297042283,-249.66,0.00019876,2]
[336995110,1725297042293,-500.0,0.00019877,2]
[336995111,1725297042302,-500.0,0.00019877,2]
[336995112,1725297042313,-500.0,0.00019878,2]
[336995113,1725297042323,-500.0,0.00019879,2]
[336995114,1725297042333,-265.067256,0.00019879,2]
[336995115,1725297042342,-500.0,0.00019879,2]
[336995116,1725297042351,-500.0,0.00019879,2]
[336995117,1725297042361,-500.0,0.00019879,2]
[336995118,1725297042370,-500.0,0.00019879,2]
[336995119,1725297042379,-208.67,0.00019879,2]
[336995120,1725297042388,-500.0,0.00019879,2]
[336995121,1725297042398,-500.0,0.00019879,2]
[336995122,1725297042407,-500.0,0.00019879,2]
[336995123,1725297042416,-500.0,0.00019879,2]
[336995124,1725297042425,-621.87809559,0.00019879,2]
[336995125,1725297042434,-295.55309149,0.00019879,2]
[336995126,1725297042444,-500.0,0.00019879,2]
[336995127,1725297042453,-500.0,0.00019879,2]
[336995128,1725297042463,-500.0,0.00019879,2]
[336995129,1725297042471,-500.0,0.00019879,2]
[336995130,1725297042481,-500.0,0.00019879,2]
[336995131,1725297042491,-500.0,0.00019879,2]
[336995132,1725297042500,-500.0,0.00019879,2]
[336995133,1725297042509,-500.0,0.00019879,2]
[336995134,1725297042519,-500.04988813,0.00019879,2]
[336995135,1725297042528,-500.0,0.00019879,2]
[336995136,1725297042538,-500.0,0.00019879,2]
[336995137,1725297042547,-500.0,0.00019879,2]
[336995138,1725297042556,-500.0,0.00019879,2]
[336995139,1725297042566,-500.0,0.00019879,2]
[336995140,1725297042575,-500.0,0.00019879,2]
[336995141,1725297042585,-500.0,0.00019879,2]
[336995142,1725297042594,-500.0,0.00019879,2]
[336995143,1725297042603,-500.0,0.00019879,2]
[336995144,1725297042612,-500.0,0.00019879,2]
[336995147,1725297042771,-575.36,0.00019879,2]
[336995148,1725297042781,-500.0,0.00019879,2]
[336995149,1725297042791,-500.0,0.00019879,2]
[336995151,1725297042800,-500.0,0.00019879,2]
[336995154,1725297042811,-200.0,0.00019879,2]
[336995156,1725297042823,-500.0,0.00019879,2]
[336995158,1725297042833,-500.0,0.00019879,2]
[336995160,1725297042842,-500.0,0.00019879,2]
[336995162,1725297042852,-500.0,0.00019879,2]
[336995165,1725297042862,-500.0,0.00019879,2]
[336995167,1725297042873,-500.0,0.00019879,2]
[336995168,1725297042882,-500.0,0.00019879,2]
[336995169,1725297042893,-500.0,0.00019879,2]
[336995170,1725297042902,-500.0,0.00019879,2]
[336995171,1725297042911,-500.0,0.00019879,2]
[336995172,1725297042920,-500.0,0.00019879,2]
[336995173,1725297042930,-500.0,0.00019879,2]
[336995174,1725297042939,-500.0,0.00019879,2]
[336995175,1725297042953,-591.31355556,0.00019879,2]
[336995176,1725297042963,-500.0,0.00019879,2]
[336995177,1725297042972,-500.0,0.00019879,2]
[336995178,1725297042982,-297.96,0.00019879,2]
[336995179,1725297042992,-168.83,0.00019879,2]
[336995180,1725297043002,-500.0,0.00019879,2]
[336995181,1725297043012,-500.0,0.00019879,2]
[336995182,1725297043023,-236.86,0.00019879,2]
[336995183,1725297043037,-601.96,0.00019879,2]
[336995184,1725297043047,-500.0,0.00019879,2]
[336995185,1725297043059,-500.0,0.00019879,2]
[336995186,1725297043070,-157.46386989,0.00019896,2]
[336995187,1725297043079,-186.22651356,0.00019897,2]
[336995188,1725297043088,-827.78521408,0.000199,2]
[336995189,1725297043098,-172.46467046,0.000199,2]
[336995190,1725297043107,-457.2098919,0.000199,2]
[336995191,1725297043117,-165.29072007,0.000199,2]
[336995192,1725297043126,-400.0,0.00019913,2]
[336995193,1725297043135,-150.0,0.00019919,2]
[336995194,1725297043144,-150.0,0.00019958,2]
[336995195,1725297043153,-1352.71740399,0.00019988,2]
[336995196,1725297043163,-632.0,0.00019996,2]
[336995197,1725297043173,-1828.0896879,0.00019996,2]
[336995198,1725297043182,-7362.79168066,0.00019996,2]
[336995203,1725297043326,-2116.2561326,0.00019996,2]
[336995204,1725297043337,-902.63081299,0.00019996,2]
[336995205,1725297043350,-162.90018305,0.00019996,2]
[336995206,1725297043359,-351.19584838,0.00019996,2]
[336995207,1725297043371,-403.52566552,0.00019996,2]
[336995208,1725297043381,-211.47633448,0.00019996,2]
[336995209,1725297043392,-302.42290132,0.00019996,2]
[336995210,1725297043401,-26707.8522878,0.00019996,2]
[336995211,1725297043411,-1166.24636093,0.00019997,2]
[336995212,1725297043421,-172.84134985,0.00019999,2]
[336995213,1725297043430,-986.41695759,0.00019999,2]
[336995214,1725297043439,-193.38416765,0.00019999,5]
[336995215,1725297043451,-621.51461131,0.00019999,5]
[336995216,1725297043460,-500.0,0.00019999,2]
[336995217,1725297043470,-187.02021086,0.00019999,2]
[336995218,1725297043481,-312.97978914,0.00019999,2]
[336995219,1725297043491,-500.0,0.00019999,2]
[336995220,1725297043500,-194.54333182,0.00019999,2]
[336995221,1725297043512,-361.81666818,0.00019999,2]
[336995222,1725297043522,-500.0,0.00019999,2]
[336995223,1725297043533,-500.0,0.00019999,2]
[336995224,1725297043543,-500.0,0.00019999,2]
[336995225,1725297043553,-474.04,0.00019999,2]
[336995226,1725297043564,-500.0,0.00019999,2]
[336995227,1725297043573,-500.0,0.00019999,2]
[336995228,1725297043583,-500.0,0.00019999,2]
[336995229,1725297043592,-500.0,0.00019999,2]
[336995230,1725297043601,-429.88,0.00019999,2]
[336995231,1725297043611,-467.0,0.00019999,2]
[336995232,1725297043621,-500.0,0.00019999,2]
[336995233,1725297043630,-243.27,0.00019999,2]
[336995234,1725297043639,-500.0,0.00019999,2]
[336995235,1725297043649,-500.0,0.00019999,2]
[336995236,1725297043659,-500.0,0.00019999,2]
[336995237,1725297043669,-486.93,0.00019999,2]
[336995238,1725297043680,-500.0,0.00019999,2]
[336995239,1725297043689,-500.0,0.00019999,2]
[336995240,1725297043700,-500.0,0.00019999,2]
[336995241,1725297043710,-500.0,0.00019999,2]
[336995242,1725297043720,-500.0,0.00019999,2]
[336995243,1725297043731,-500.0,0.00019999,2]
[336995244,1725297043741,-450.53,0.00019999,2]
[336995245,1725297043751,-500.0,0.00019999,2]
[336995246,1725297043762,-500.0,0.00019999,2]
[336995247,1725297043772,-500.0,0.00019999,2]
[336995248,1725297043782,-500.0,0.00019999,2]
[336995249,1725297043791,-500.0,0.00019999,2]
[336995250,1725297043803,-528.28,0.00019999,2]
[336995251,1725297043813,-500.0,0.00019999,2]
[336995252,1725297043823,-500.0,0.00019999,2]
[336995253,1725297043832,-500.0,0.00019999,2]
[336995254,1725297043843,-413.35,0.00019999,2]
[336995255,1725297043852,-2036.58345385,0.0002,2]
[336995256,1725297043865,-7620.77824895,0.0002,2]
[336995257,1725297043879,-3094.43711027,0.0002,2]
[336995258,1725297043892,-719.26763437,0.0002,2]
[336995259,1725297043905,-1383.75,0.0002,2]
[336995260,1725297043916,-477.21,0.0002,2]
[336995261,1725297043927,-395.92311807,0.0002,2]
[336995262,1725297043937,-744.96847343,0.0002,15]
[336995263,1725297043950,-1196.27748856,0.0002,15]
[336995264,1725297043962,-1758.3586544,0.0002,15]
[336995265,1725297043973,-891.12424195,0.0002,15]
[336995266,1725297043984,-352768.40545461,0.0002,15]
[336995267,1725297043995,-5169.12813013,0.0002,15]
[336995268,1725297044006,-131636.8927666,0.0002,15]
[336995269,1725297044017,-1300.0,0.0002,15]
[336995270,1725297044030,-305309.07225802,0.0002,15]
[336995271,1725297044041,-712.12970307,0.0002,15]
[336995272,1725297044052,-5271.4329999,0.0002,15]
[336995273,1725297044064,-654.69875375,0.0002,15]
[336995274,1725297044075,-186696.30956167,0.0002,15]
[336995275,1725297044086,-1593.55023297,0.0002,15]
[336995276,1725297044097,-2268.5,0.0002,15]
[336995277,1725297044108,-534.92048546,0.0002,15]
[336995278,1725297044139,-2183.75811,0.0002,15]
[336995279,1725297044150,-3640.15163054,0.0002,15]
[336995280,1725297044161,-7898.999995,0.0002,15]
[336995281,1725297044172,-151566.65244466,0.0002,15]
[336995282,1725297044183,-1300.0,0.0002,15]
[336995283,1725297044195,-2144.147432,0.0002,15]
[336995284,1725297044206,-12368.84349906,0.0002,15]
[336995285,1725297045545,-5461.22,0.0002,15]
[336995286,1725297045559,-495.13548268,0.0002,15]
[336995291,1725297045929,-150.26,0.00019996,2]
[336995292,1725297045938,-102.37,0.0002,15]
[336995293,1725297045951,-578.09,0.0002,15]
[336995294,1725297045984,-619.76020313,0.0002,15]
[336995295,1725297046045,-7314.07291341,0.0002,15]
[336995296,1725297046056,-1728.58052957,0.0002,15]
[336995297,1725297046157,-900.0,0.0002,15]
[336995298,1725297046268,-552.24642617,0.0002,15]
[336995299,1725297077467,1165.34794684,0.00025,60]
[336995322,1725297203009,500.0,0.00027,120]
[336995323,1725297362737,186.01,0.00025756,120]
[336995324,1725297505250,550.0,0.00011,2]
[336995325,1725297669494,168.12,0.00010959,2]
[336995326,1725297925445,970.47441317,0.000108,2]
[336995338,1725298202622,150.0,0.000108,2]
[336995339,1725298202803,150.0,0.000108,2]
[336995340,1725298203012,150.0,0.000108,2]
[336995341,1725298203273,150.0,0.000108,2]
[336995342,1725298203489,150.0,0.000108,2]
[336995343,1725298203698,150.0,0.000108,2]
[336995344,1725298203897,150.0,0.000108,2]
[336995345,1725298204090,150.0,0.000108,2]
[336995346,1725298204304,150.0,0.000108,2]
[336995347,1725298204510,150.0,0.000108,2]
[336995348,1725298205210,150.0,0.000108,2]
[336995349,1725298205459,202.39268906,0.000108,2]
[336995368,1725298232049,-186.25460476,0.0001449,2]